fUSD/lending_fUSD_20240624
["ID","MTS","AMOUNT","RATE_DAILY","PERIOD"]
[330270434,1719219142797,-964.25,0.00019726,4]
[330270435,1719219142824,-503.8,0.00019726,4]
[330270436,1719219142851,-634.47,0.00019726,4]
[330270437,1719219142878,-640.97,0.00019726,4]
[330270438,1719219142906,-605.59,0.00019726,4]
[330270439,1719219142934,-500.0,0.00019726,4]
[330270440,1719219142961,-500.0,0.00019726,4]
[330270441,1719219142988,-500.0,0.00019726,4]
[330270442,1719219143015,-500.0,0.00019726,4]
[330270443,1719219143042,-888.06,0.00019726,4]
[330270444,1719219143069,-500.0,0.00019726,4]
[330270445,1719219143096,-1013.43,0.00019726,4]
[330270446,1719219143123,-500.0,0.00019726,4]
[330270447,1719219143150,-500.0,0.00019726,4]
[330270448,1719219143178,-500.0,0.00019726,4]
[330270449,1719219143205,-1802.17,0.00019726,4]
[330270450,1719219143231,-753.92,0.00019726,4]
[330270451,1719219143259,-500.0,0.00019726,4]
[330270452,1719219143288,-500.0,0.00019726,4]
[330270453,1719219143314,-500.0,0.00019726,4]
[330270454,1719219143342,-500.0,0.00019726,4]
[330270455,1719219143369,-500.0,0.00019726,4]
[330270456,1719219143397,-500.0,0.00019726,4]
[330270457,1719219143424,-500.0,0.00019726,4]
[330270458,1719219143450,-500.0,0.00019726,4]
[330270459,1719219143478,-738.24,0.00019726,4]
[330270460,1719219143508,-500.0,0.00019726,4]
[330270461,1719219143536,-704.86,0.00019726,4]
[330270462,1719219143562,-500.0,0.00019726,4]
[330270463,1719219143590,-500.0,0.00019726,4]
[330270464,1719219143620,-500.0,0.00019726,4]
[330270465,1719219143648,-1449.44,0.00019726,4]
[330270466,1719219143847,-500.0,0.00019726,4]
[330270467,1719219143875,-500.0,0.00019726,4]
[330270468,1719219143904,-500.0,0.00019726,4]
[330270469,1719219143931,-500.0,0.00019726,4]
[330270470,1719219143960,-740.35,0.00019726,4]
[330270471,1719219143988,-551.77,0.00019726,4]
[330270472,1719219144018,-721.7,0.00019726,4]
[330270473,1719219144050,-563.64,0.00019726,4]
[330270474,1719219144081,-500.0,0.00019726,4]
[330270475,1719219144112,-500.0,0.00019726,4]
[330270476,1719219144141,-500.0,0.00019726,4]
[330270477,1719219144173,-1501.35,0.00019726,4]
[330270478,1719219144203,-500.0,0.00019726,4]
[330270479,1719219144234,-500.0,0.00019726,4]
[330270480,1719219144264,-1202.18,0.00019726,4]
[330270481,1719219144298,-500.0,0.00019726,4]
[330270482,1719219144328,-574.92,0.00019726,4]
[330270483,1719219144360,-500.0,0.00019726,4]
[330270484,1719219144391,-500.0,0.00019726,4]
[330270485,1719219144421,-692.24,0.00019726,4]
[330270486,1719219144451,-500.0,0.00019726,4]
[330270487,1719219144482,-2044.66,0.00019726,4]
[330270488,1719219144512,-751.68,0.00019726,4]
[330270489,1719219144541,-527.87449785,0.00019726,4]
[330270490,1719219144571,-500.0,0.00019726,2]
[330270491,1719219144600,-500.0,0.00019726,4]
[330270492,1719219144631,-500.0,0.00019726,4]
[330270493,1719219144662,-646.27,0.00019726,4]
[330270494,1719219144695,-516.09481286,0.00019726,4]
[330270495,1719219144728,-500.0,0.00019726,4]
[330270496,1719219144756,-500.0,0.00019726,4]
[330270497,1719219144785,-500.0,0.00019726,4]
[330270498,1719219144817,-500.0,0.00019726,4]
[330270499,1719219144851,-866.29,0.00019726,4]
[330270500,1719219144883,-666.23,0.00019726,4]
[330270501,1719219144912,-500.0,0.00019726,4]
[330270502,1719219144941,-557.44,0.00019726,4]
[330270503,1719219144969,-1449.34,0.00019726,4]
[330270504,1719219144998,-500.0,0.00019726,4]
[330270505,1719219145028,-500.0,0.00019726,4]
[330270506,1719219145058,-639.0,0.00019726,4]
[330270507,1719219145086,-500.0,0.00019726,4]
[330270508,1719219145117,-635.57,0.00019726,4]
[330270509,1719219145146,-500.0,0.00019726,4]
[330270510,1719219145175,-500.0,0.00019726,4]
[330270511,1719219145203,-500.0,0.00019726,4]
[330270512,1719219145233,-1209.07,0.00019726,4]
[330270513,1719219145262,-500.0,0.00019726,4]
[330270514,1719219145293,-552.07,0.00019726,4]
[330270515,1719219145325,-500.0,0.00019726,4]
[330270516,1719219145355,-583.57,0.00019726,4]
[330270517,1719219145386,-500.0,0.00019726,4]
[330270518,1719219145416,-500.0,0.00019726,4]
[330270519,1719219145446,-500.0,0.00019726,4]
[330270520,1719219145476,-500.0,0.00019726,4]
[330270521,1719219145509,-650.21,0.00019726,4]
[330270522,1719219145541,-500.0,0.00019726,4]
[330270523,1719219145572,-505.7889065,0.00019726,4]
[330270524,1719219145604,-612.46,0.00019726,4]
[330270525,1719219145636,-500.0,0.00019726,4]
[330270526,1719219145668,-500.0,0.00019726,4]
[330270527,1719219145700,-500.0,0.00019726,4]
[330270528,1719219145730,-746.5,0.00019726,4]
[330270529,1719219145760,-1602.79,0.00019726,4]
[330270530,1719219145789,-1731.28,0.00019726,4]
[330270531,1719219145819,-500.0,0.00019726,4]
[330270532,1719219145849,-500.0,0.00019726,4]
[330270533,1719219145877,-500.0,0.00019726,4]
[330270534,1719219145905,-500.0,0.00019726,4]
[330270535,1719219145933,-1285.84,0.00019726,4]
[330270536,1719219145960,-500.0,0.00019726,4]
[330270537,1719219145989,-501.38,0.00019726,4]
[330270538,1719219146018,-500.0,0.00019726,4]
[330270539,1719219146046,-500.0,0.00019726,4]
[330270540,1719219146074,-500.0,0.00019726,4]
[330270541,1719219146102,-318.41,0.00019726,4]
[330270542,1719219146130,-500.0,0.00019726,4]
[330270543,1719219146159,-2500.0,0.00019726,3]
[330270544,1719219146188,-753.11,0.00019726,4]
[330270545,1719219146218,-1212.55,0.00019726,4]
[330270546,1719219146250,-500.0,0.00019726,4]
[330270547,1719219146282,-500.0,0.00019726,4]
[330270548,1719219146316,-500.0,0.00019726,4]
[330270549,1719219146347,-260.76236236,0.00019726,4]
[330270550,1719219146381,-1138.46,0.00019726,4]
[330270551,1719219146414,-500.0,0.00019726,4]
[330270552,1719219146446,-500.0,0.00019726,4]
[330270553,1719219146476,-500.0,0.00019726,4]
[330270554,1719219146509,-723.22,0.00019726,4]
[330270555,1719219146538,-985.76,0.00019726,4]
[330270556,1719219146567,-500.0,0.00019726,4]
[330270557,1719219146599,-250.0,0.00019726,4]
[330270558,1719219146628,-1071.39,0.00019726,4]
[330270559,1719219146658,-500.0,0.00019726,4]
[330270560,1719219146688,-500.0,0.00019726,4]
[330270561,1719219146718,-500.0,0.00019726,4]
[330270562,1719219146746,-500.0,0.00019726,4]
[330270563,1719219146775,-500.0,0.00019726,4]
[330270564,1719219146807,-500.0,0.00019726,4]
[330270565,1719219146836,-707.98,0.00019726,4]
[330270566,1719219146868,-635.89,0.00019726,4]
[330270567,1719219146897,-689.43,0.00019726,4]
[330270568,1719219146926,-500.0,0.00019726,4]
[330270569,1719219146955,-1014.35,0.00019726,4]
[330270570,1719219147167,-500.0,0.00019726,4]
[330270571,1719219147197,-500.0,0.00019726,4]
[330270572,1719219147225,-500.0,0.00019726,4]
[330270573,1719219147254,-673.57,0.00019726,4]
[330270574,1719219147288,-500.0,0.00019726,4]
[330270575,1719219147316,-541.37,0.00019726,4]
[330270576,1719219147348,-500.0,0.00019726,4]
[330270577,1719219147377,-563.8,0.00019726,4]
[330270578,1719219147406,-747.4,0.00019726,4]
[330270579,1719219147435,-621.18,0.00019726,4]
[330270580,1719219147464,-653.53,0.00019726,4]
[330270581,1719219147493,-500.0,0.00019726,4]
[330270582,1719219147523,-737.88,0.00019726,4]
[330270583,1719219147556,-908.15,0.00019726,4]
[330270584,1719219147590,-500.0,0.00019726,4]
[330270585,1719219147630,-500.0,0.00019726,4]
[330270586,1719219147665,-1561.59,0.00019726,4]
[330270587,1719219147696,-500.0,0.00019726,4]
[330270588,1719219147727,-500.0,0.00019726,4]
[330270589,1719219147759,-554.06,0.00019726,4]
[330270590,1719219147788,-570.65,0.00019726,4]
[330270591,1719219147819,-500.0,0.00019726,4]
[330270592,1719219147852,-788.37,0.00019726,4]
[330270593,1719219147886,-758.31,0.00019726,4]
[330270594,1719219147914,-1016.82,0.00019726,4]
[330270595,1719219147942,-500.0,0.00019726,4]
[330270596,1719219147973,-500.0,0.00019726,4]
[330270597,1719219148003,-741.45,0.00019726,4]
[330270598,1719219148033,-500.0,0.00019726,4]
[330270599,1719219148062,-500.0,0.00019726,4]
[330270600,1719219148096,-634.1,0.00019726,4]
[330270601,1719219148130,-581.28,0.00019726,4]
[330270602,1719219148160,-500.0,0.00019726,4]
[330270603,1719219148189,-508.63,0.00019726,4]
[330270604,1719219148219,-1350.85,0.00019726,4]
[330270605,1719219148249,-514.55,0.00019726,4]
[330270606,1719219148277,-556.03,0.00019726,4]
[330270607,1719219148308,-650.34,0.00019726,4]
[330270608,1719219148337,-776.13,0.00019726,4]
[330270609,1719219148370,-538.15,0.00019726,4]
[330270610,1719219148399,-500.0,0.00019726,4]
[330270611,1719219148428,-512.0,0.00019726,4]
[330270612,1719219148458,-514.4,0.00019726,4]
[330270613,1719219148486,-500.0,0.00019726,4]
[330270614,1719219148515,-840.12,0.00019726,4]
[330270615,1719219148543,-500.0,0.00019726,4]
[330270616,1719219148570,-500.0,0.00019726,4]
[330270617,1719219148600,-1276.05,0.00019726,4]
[330270618,1719219148628,-738.89,0.00019726,4]
[330270619,1719219148656,-500.0,0.00019726,4]
[330270620,1719219148685,-500.0,0.00019726,4]
[330270621,1719219148713,-500.0,0.00019726,4]
[330270622,1719219148742,-945.66,0.00019726,4]
[330270623,1719219148769,-500.0,0.00019726,4]
[330270624,1719219148798,-500.0,0.00019726,4]
[330270625,1719219148826,-774.27,0.00019726,4]
[330270626,1719219148875,-797.03,0.00019726,4]
[330270627,1719219148907,-674.88,0.00019726,4]
[330270628,1719219148941,-586.52,0.00019726,4]
[330270629,1719219148978,-500.0,0.00019726,4]
[330270630,1719219149013,-538.29474243,0.00019726,4]
[330270631,1719219149046,-500.0,0.00019726,4]
[330270632,1719219149078,-935.12,0.00019726,4]
[330270633,1719219149110,-500.0,0.00019726,4]
[330270634,1719219149140,-960.92,0.00019726,4]
[330270635,1719219149172,-500.0,0.00019726,4]
[330270636,1719219149207,-841.78,0.00019726,4]
[330270637,1719219149240,-500.0,0.00019726,4]
[330270638,1719219149274,-500.0,0.00019726,4]
[330270639,1719219149309,-681.7,0.00019726,4]
[330270640,1719219149343,-500.0,0.00019726,4]
[330270641,1719219149377,-1492.08,0.00019726,4]
[330270642,1719219149406,-500.0,0.00019726,4]
[330270643,1719219149436,-698.57,0.00019726,4]
[330270644,1719219149466,-573.41,0.00019726,4]
[330270645,1719219149497,-563.03,0.00019726,4]
[330270646,1719219149526,-500.0,0.00019726,4]
[330270647,1719219149556,-790.64,0.00019726,4]
[330270648,1719219149586,-500.0,0.00019726,4]
[330270649,1719219149618,-986.08,0.00019726,4]
[330270650,1719219149649,-2388.91,0.00019726,4]
[330270651,1719219149679,-794.26,0.00019726,4]
[330270652,1719219149714,-641.19,0.00019726,4]
[330270653,1719219149744,-500.0,0.00019726,4]
[330270654,1719219149774,-896.28,0.00019726,4]
[330270655,1719219149804,-2269.36,0.00019726,4]
[330270656,1719219149836,-880.92,0.00019726,4]
[330270657,1719219149868,-529.67,0.00019726,4]
[330270658,1719219149900,-877.57,0.00019726,4]
[330270659,1719219149932,-1138.11,0.00019726,4]
[330270660,1719219149962,-500.0,0.00019726,4]
[330270661,1719219149993,-500.0,0.00019726,4]
[330270662,1719219150024,-500.0,0.00019726,4]
[330270663,1719219150057,-18770.04,0.00019726,4]
[330270664,1719219150088,-1014.99,0.00019726,4]
[330270665,1719219150121,-500.0,0.00019726,4]
[330270666,1719219150152,-500.0,0.00019726,4]
[330270667,1719219150183,-1861.27,0.00019726,4]
[330270668,1719219150212,-1421.28,0.00019726,4]
[330270669,1719219150242,-527.05,0.00019726,4]
[330270670,1719219150272,-1512.7,0.00019726,4]
[330270671,1719219150306,-589.19,0.00019726,4]
[330270672,1719219150339,-726.38,0.00019726,4]
[330270673,1719219150371,-952.68,0.00019726,4]
[330270674,1719219150690,-500.0,0.00019726,4]
[330270675,1719219150721,-922.67,0.00019726,4]
[330270676,1719219150752,-1039.09,0.00019726,4]
[330270677,1719219150785,-600.96,0.00019726,4]
[330270678,1719219150816,-894.67,0.00019726,4]
[330270679,1719219150846,-500.0,0.00019726,4]
[330270680,1719219150885,-772.68,0.00019726,4]
[330270681,1719219150915,-1895.67,0.00019726,4]
[330270682,1719219150945,-1479.08,0.00019726,4]
[330270683,1719219150975,-500.0,0.00019726,4]
[330270684,1719219151006,-1665.06,0.00019726,4]
[330270685,1719219151035,-1100.8,0.00019726,4]
[330270686,1719219151064,-500.0,0.00019726,4]
[330270687,1719219151092,-1937.34,0.00019726,4]
[330270688,1719219151123,-657.61,0.00019726,4]
[330270689,1719219151153,-1694.54,0.00019726,4]
[330270690,1719219151184,-500.0,0.00019726,4]
[330270691,1719219151213,-500.0,0.00019726,4]
[330270692,1719219151242,-659.6,0.00019726,4]
[330270693,1719219151271,-690.76,0.00019726,4]
[330270694,1719219151304,-500.0,0.00019726,4]
[330270695,1719219151334,-840.14,0.00019726,4]
[330270696,1719219151366,-515.99,0.00019726,4]
[330270697,1719219151397,-1270.74,0.00019726,4]
[330270698,1719219151428,-870.19,0.00019726,4]
[330270699,1719219151458,-652.98,0.00019726,4]
[330270700,1719219151490,-559.99501763,0.00019726,4]
[330270701,1719219151520,-500.0,0.00019726,4]
[330270702,1719219151551,-939.72,0.00019726,4]
[330270703,1719219151580,-1486.41,0.00019726,4]
[330270704,1719219151611,-2863.88,0.00019726,4]
[330270705,1719219151640,-1004.34,0.00019726,4]
[330270706,1719219151671,-709.34,0.00019726,4]
[330270707,1719219151703,-1493.59,0.00019726,4]
[330270708,1719219151735,-500.0,0.00019726,4]
[330270709,1719219151766,-621.76,0.00019726,4]
[330270710,1719219151797,-1311.74,0.00019726,4]
[330270711,1719219151828,-635.53,0.00019726,4]
[330270712,1719219151858,-500.0,0.00019726,4]
[330270713,1719219151888,-533.28,0.00019726,4]
[330270714,1719219151918,-500.0,0.00019726,4]
[330270715,1719219151949,-569.02,0.00019726,4]
[330270716,1719219151983,-532.01,0.00019726,4]
[330270717,1719219152013,-500.0,0.00019726,4]
[330270718,1719219152045,-1091.83,0.00019726,4]
[330270719,1719219152076,-587.85,0.00019726,4]
[330270720,1719219152107,-653.27,0.00019726,4]
[330270721,1719219152139,-500.0,0.00019726,4]
[330270722,1719219152169,-668.5,0.00019726,4]
[330270723,1719219152203,-1917.18,0.00019726,4]
[330270724,1719219152235,-500.0,0.00019726,4]
[330270725,1719219152266,-500.0,0.00019726,4]
[330270726,1719219152302,-500.0,0.00019726,4]
[330270727,1719219152368,-500.0,0.00019726,4]
[330270728,1719219152429,-500.0,0.00019726,4]
[330270729,1719219152489,-7415.19,0.00019726,4]
[330270730,1719219152540,-578.82,0.00019726,4]
[330270731,1719219152589,-1798.69,0.00019726,4]
[330270732,1719219152648,-500.0,0.00019726,4]
[330270733,1719219152695,-500.0,0.00019726,4]
[330270734,1719219152745,-815.27,0.00019726,4]
[330270735,1719219152790,-3527.56,0.00019726,4]
[330270736,1719219152835,-1358.05,0.00019726,4]
[330270737,1719219152882,-825.81,0.00019726,4]
[330270738,1719219152924,-629.87,0.00019726,4]
[330270739,1719219152968,-500.0,0.00019726,4]
[330270740,1719219153018,-1236.09,0.00019726,4]
[330270741,1719219153061,-1278.17,0.00019726,4]
[330270742,1719219153106,-500.0,0.00019726,4]
[330270743,1719219153150,-500.0,0.00019726,4]
[330270744,1719219153194,-2102.4,0.00019726,4]
[330270745,1719219153237,-500.0,0.00019726,4]
[330270746,1719219153281,-509.74,0.00019726,4]
[330270747,1719219153330,-501.94,0.00019726,4]
[330270748,1719219153380,-500.0,0.00019726,4]
[330270749,1719219153425,-2784.87,0.00019726,4]
[330270750,1719219153469,-1027.87,0.00019726,4]
[330270751,1719219153516,-1717.27,0.00019726,4]
[330270752,1719219153561,-677.43,0.00019726,4]
[330270753,1719219153608,-1180.3,0.00019726,4]
[330270754,1719219153654,-500.0,0.00019726,4]
[330270755,1719219153696,-500.0,0.00019726,4]
[330270756,1719219153739,-500.0,0.00019726,4]
[330270757,1719219153782,-727.25,0.00019726,4]
[330270758,1719219153826,-539.5,0.00019726,4]
[330270759,1719219153869,-3728.34,0.00019726,4]
[330270760,1719219153914,-500.0,0.00019726,4]
[330270761,1719219153959,-2529.06,0.00019726,4]
[330270762,1719219154003,-611.04,0.00019726,4]
[330270763,1719219154049,-2584.42,0.00019726,4]
[330270764,1719219154094,-500.0,0.00019726,4]
[330270765,1719219154140,-685.73,0.00019726,4]
[330270766,1719219154185,-500.0,0.00019726,4]
[330270767,1719219154228,-723.76,0.00019726,4]
[330270768,1719219154272,-764.02,0.00019726,4]
[330270769,1719219154319,-866.63,0.00019726,4]
[330270770,1719219154363,-1808.46,0.00019726,4]
[330270771,1719219154408,-3128.36,0.00019726,4]
[330270772,1719219154454,-2011.41,0.00019726,4]
[330270773,1719219154506,-1355.31,0.00019726,4]
[330270774,1719219154543,-706.96,0.00019726,4]
[330270775,1719219154579,-1087.64,0.00019726,4]
[330270776,1719219154612,-767.98,0.00019726,4]
[330270777,1719219154645,-500.0,0.00019726,4]
[330270779,1719219155013,-541.88,0.00019726,4]
[330270780,1719219155055,-788.54,0.00019726,4]
[330270781,1719219155088,-863.63,0.00019726,4]
[330270782,1719219155123,-500.0,0.00019726,2]
[330270783,1719219155155,-1293.94,0.00019726,4]
[330270784,1719219155188,-1892.22,0.00019726,4]
[330270785,1719219155219,-584.75,0.00019726,4]
[330270786,1719219155250,-872.65,0.00019726,4]
[330270787,1719219155282,-500.0,0.00019726,4]
[330270788,1719219155319,-647.16,0.00019726,4]
[330270789,1719219155355,-1891.81,0.00019726,4]
[330270790,1719219155388,-500.0,0.00019726,4]
[330270791,1719219155421,-1053.59,0.00019726,4]
[330270792,1719219155457,-957.36,0.00019726,4]
[330270793,1719219155492,-500.0,0.00019726,4]
[330270794,1719219155528,-500.0,0.00019726,4]
[330270795,1719219155563,-500.0,0.00019726,4]
[330270796,1719219155598,-500.0,0.00019726,4]
[330270797,1719219155632,-500.0,0.00019726,4]
[330270798,1719219155665,-3298.75,0.00019726,4]
[330270799,1719219155699,-552.19,0.00019726,4]
[330270800,1719219155734,-500.0,0.00019726,4]
[330270801,1719219155770,-605.28,0.00019726,4]
[330270802,1719219155806,-849.74,0.00019726,4]
[330270803,1719219155840,-500.0,0.00019726,4]
[330270804,1719219155874,-1280.2,0.00019726,4]
[330270805,1719219155909,-1096.63,0.00019726,4]
[330270806,1719219155941,-834.91,0.00019726,4]
[330270807,1719219155973,-1843.17,0.00019726,4]
[330270808,1719219156004,-2317.46,0.00019726,4]
[330270809,1719219156036,-500.0,0.00019726,4]
[330270810,1719219156068,-500.0,0.00019726,4]
[330270811,1719219156099,-763.54,0.00019726,4]
[330270812,1719219156133,-632.79,0.00019726,4]
[330270813,1719219156164,-1862.43,0.00019726,4]
[330270814,1719219156195,-1578.46,0.00019726,4]
[330270815,1719219156228,-3854.5,0.00019726,4]
[330270816,1719219156260,-528.93,0.00019726,4]
[330270817,1719219156294,-1010.56,0.00019726,4]
[330270818,1719219156326,-679.63,0.00019726,4]
[330270819,1719219156361,-545.4,0.00019726,4]
[330270820,1719219156396,-500.0,0.00019726,4]
[330270821,1719219156430,-633.51,0.00019726,4]
[330270822,1719219156465,-500.0,0.00019726,4]
[330270823,1719219156499,-1076.34,0.00019726,4]
[330270824,1719219156533,-500.1,0.00019726,4]
[330270825,1719219156566,-815.29,0.00019726,4]
[330270826,1719219156599,-881.78,0.00019726,4]
[330270827,1719219156634,-752.54,0.00019726,4]
[330270828,1719219156665,-500.0,0.00019726,4]
[330270829,1719219156699,-1656.04,0.00019726,4]
[330270830,1719219156733,-1401.97,0.00019726,4]
[330270831,1719219156767,-821.2,0.00019726,4]
[330270832,1719219156801,-500.0,0.00019726,4]
[330270833,1719219156835,-12687.68,0.00019726,4]
[330270834,1719219156875,-606.55,0.00019726,4]
[330270835,1719219156906,-2054.46,0.00019726,4]
[330270836,1719219156942,-550.72,0.00019726,4]
[330270837,1719219156974,-860.24,0.00019726,4]
[330270838,1719219157006,-1145.17,0.00019726,4]
[330270839,1719219157039,-784.49,0.00019726,4]
[330270840,1719219157071,-934.49,0.00019726,4]
[330270841,1719219157102,-1756.01,0.00019726,4]
[330270842,1719219157134,-500.0,0.00019726,4]
[330270843,1719219157167,-234.1,0.00019767,2]
[330270844,1719219157198,-946.55454585,0.000198,2]
[330270845,1719219157230,-200.0,0.00019813,2]
[330270846,1719219157262,-220.09,0.00019836,2]
[330270847,1719219157299,-1655.0,0.00019875,2]
[330270848,1719219157330,-359.0,0.00019875,2]
[330270849,1719219157366,-1830.0,0.00019875,2]
[330270850,1719219157403,-1272.0,0.00019875,2]
[330270851,1719219157435,-506.003,0.00019875,2]
[330270852,1719219157468,-617.0,0.00019875,2]
[330270853,1719219157500,-812.0,0.00019875,2]
[330270854,1719219157532,-490.735,0.00019875,2]
[330270855,1719219157568,-1304.0,0.00019875,2]
[330270856,1719219157605,-150.0,0.00019875,2]
[330270857,1719219157640,-2412.0,0.00019875,2]
[330270858,1719219157674,-1984.0,0.00019875,2]
[330270859,1719219157708,-3201.0,0.00019875,2]
[330270860,1719219157746,-547.0,0.00019875,2]
[330270861,1719219157780,-5168.0,0.00019875,2]
[330270862,1719219157815,-5800.0,0.00019875,2]
[330270863,1719219157847,-150.0,0.00019875,2]
[330270864,1719219157882,-151.049,0.00019875,2]
[330270865,1719219157915,-291.0,0.00019875,2]
[330270866,1719219157949,-150.224,0.00019875,2]
[330270867,1719219157982,-38166.0,0.00019875,2]
[330270868,1719219158016,-252.946,0.00019875,2]
[330270869,1719219158050,-1661.0,0.00019875,2]
[330270870,1719219158084,-1197.0,0.00019875,2]
[330270871,1719219158118,-150.0,0.00019875,2]
[330270872,1719219158152,-1068.0,0.00019875,2]
[330270873,1719219158186,-156.251,0.00019875,2]
[330270874,1719219158220,-150.0,0.00019875,2]
[330270875,1719219158253,-150.0,0.00019875,2]
[330270876,1719219158289,-1012.78,0.000199,2]
[330270877,1719219158324,-150.0,0.00019922,7]
[330270878,1719219158363,-1004932.50605767,0.00019922,7]
[330270879,1719219158396,-378699.36543358,0.00019923,2]
[330270880,1719219158615,-7967.15170049,0.00019924,2]
[330270881,1719219158650,-12749.19467156,0.00019926,2]
[330270882,1719219158684,-3243.31444972,0.00019999,5]
[330270883,1719219158717,-230.91,0.0002,2]
[330270884,1719219158755,-187.96812151,0.0002,2]
[330270885,1719219158789,-2249.33860156,0.0002,2]
[330270886,1719219158824,-155.0,0.0002,2]
[330270887,1719219158862,-698.44,0.0002,4]
[330270888,1719219158896,-739.2,0.0002,4]
[330270889,1719219158930,-539.47,0.0002,4]
[330270890,1719219158964,-545.82,0.0002,4]
[330270891,1719219159005,-500.0,0.0002,4]
[330270892,1719219159043,-500.0,0.0002,4]
[330270893,1719219159081,-850.95,0.0002,4]
[330270894,1719219159117,-592.45,0.0002,4]
[330270895,1719219159154,-664.37,0.0002,4]
[330270896,1719219159192,-613.12,0.0002,4]
[330270897,1719219159230,-821.61,0.0002,4]
[330270898,1719219159267,-514.58,0.0002,4]
[330270899,1719219159308,-500.0,0.0002,4]
[330270900,1719219159346,-665.04,0.0002,4]
[330270901,1719219159386,-629.11,0.0002,4]
[330270902,1719219159423,-615.09,0.0002,4]
[330270903,1719219159459,-572.87,0.0002,4]
[330270904,1719219159501,-500.0,0.0002,2]
[330270905,1719219159543,-556.94,0.0002,4]
[330270906,1719219159584,-500.0,0.0002,4]
[330270907,1719219159626,-500.0,0.0002,4]
[330270908,1719219159667,-887.24,0.0002,4]
[330270909,1719219159708,-655.04,0.0002,4]
[330270910,1719219159743,-509.2,0.0002,4]
[330270911,1719219159777,-3983.38905722,0.0002,2]
[330270912,1719219159813,-519.43,0.0002,4]
[330270913,1719219159848,-517.39,0.0002,4]
[330270914,1719219159884,-532.99,0.0002,4]
[330270915,1719219159920,-500.0,0.0002,4]
[330270916,1719219159956,-500.0,0.0002,4]
[330270917,1719219159993,-921.46,0.0002,4]
[330270918,1719219160029,-826.34,0.0002,4]
[330270919,1719219160064,-907.2,0.0002,4]
[330270920,1719219160100,-514.15,0.0002,4]
[330270921,1719219160143,-500.0,0.0002,4]
[330270922,1719219160179,-876.76,0.0002,4]
[330270923,1719219160215,-500.0,0.0002,4]
[330270924,1719219160252,-500.0,0.0002,4]
[330270925,1719219160291,-500.0,0.0002,4]
[330270926,1719219160326,-826.83,0.0002,4]
[330270927,1719219160361,-500.0,0.0002,4]
[330270928,1719219160398,-500.0,0.0002,4]
[330270929,1719219160433,-500.0,0.0002,4]
[330270930,1719219160468,-964.25,0.0002,4]
[330270931,1719219160504,-503.8,0.0002,4]
[330270932,1719219160539,-634.47,0.0002,4]
[330270933,1719219160578,-640.97,0.0002,4]
[330270934,1719219160613,-605.59,0.0002,4]